Cogmind - Beta 12 @@@ ROGUE MODE // 2024.02.11 @ 23:38:13 Player: Krieg Result: Destroyed by G-34 Mercenary with Small Laser Performance ------------- Evolutions (1) 500 Regions Visited (2) 400 Robots Destroyed (13) 65 Value Destroyed (334) 334 Prototype IDs (1) 20 Alien Tech Used (0) 0 Bonus (200) 200 TOTAL SCORE: 1519 Bonus ------- Pacifist 200 Cogmind --------- Core Integrity 0/400 Matter 300/300 Energy 99/100 System Corruption 0% Temperature Cool (6) Movement Core (50) Location -9/Materials Parts ------- > --- POWER (1) -------- (None) > --- PROPULSION (4) --- (None) > --- UTILITY (2) ------ (None) > --- WEAPON (2) ------- (None) > --- INVENTORY (5) ---- Improved Heat Sink Heavy Armor Plating Assault Rifle Heavy Assault Rifle Peak State ------------ > --- POWER ------------ Heavy Ion Engine > --- PROPULSION ------- Aluminum Leg Aluminum Leg Aluminum Leg Aluminum Leg > --- UTILITY ---------- Large Storage Unit Sensor Array > --- WEAPON ----------- Assault Rifle Light Assault Rifle > --- INVENTORY -------- Ion Engine Light Ion Engine Heavy Ion Engine Heavy Ion Engine Improved Heat Sink Small Storage Unit Small Matter Pod Targeting Computer Utility Shielding Light Armor Plating Medium Laser Light Assault Rifle Heavy Assault Rifle Grenade Launcher [Rating: 13] Favorites ----------- Power Ion Engine Engine Ion Engine Propulsion Aluminum Leg Leg Aluminum Leg Wheel Wheel Utility Sensor Array Device Sensor Array Storage Large Storage Unit Weapon Light Assault Rifle Ballistic Gun Light Assault Rifle Build | -11 -10 -9 ------- Run | Jun Mat Mat Slots Evolved 2 | . . 2 Power . | . . . Propulsion 2 | . . 2 Utility . | . . . Weapon . | . . . Parts Attached 23 | 6 1 16 Power 4 | 1 . 3 Engine 4 | 1 . 3 Core . | . . . Reactor . | . . . Propulsion 12 | 2 . 10 Treads . | . . . Leg 8 | 2 . 6 Wheel 4 | . . 4 Hover . | . . . Flight . | . . . Utility 3 | 1 1 1 Device 1 | . 1 . Storage 2 | 1 . 1 Processor . | . . . Hackware . | . . . Protection . | . . . Artifact . | . . . Weapon 4 | 2 . 2 Energy Gun . | . . . Energy Cannon . | . . . Ballistic Gun 4 | 2 . 2 Ballistic Cannon . | . . . Launcher . | . . . Special Weapon . | . . . Impact Weapon . | . . . Slashing Weapon . | . . . Piercing Weapon . | . . . Special Melee Weapon . | . . . Unidentified Prototypes 1 | . . 1 Parts Lost 11 | . . 11 Power 1 | . . 1 Propulsion 7 | . . 7 Utility 1 | . . 1 Weapon 2 | . . 2 Highest Loss Streak 7 | . . 7 To Critical Strikes . | . . . Average Slot Usage (%) 92 | . 95 91 Engine 11 | . 14 10 Leg 24 | . 28 23 Wheel 11 | . . 16 Device 10 | . 10 11 Storage 11 | . 14 11 Ballistic Gun 21 | . 28 19 Naked Turns 1 | . . 1 Heaviest Build 32 | 13 14 32 Greatest Support 40 | 20 20 40 Greatest Overweight (x) 6 | 1 . 6 Average Overweight (x) . | . . . Largest Inventory Capacity 15 | 8 8 15 Average Capacity 12 | 6 8 14 Most Carried 15 | 6 8 15 Average Carried 9 | 4 7 11 Final Capacity 8 | 8 8 5 Final Carried 8 | 6 8 5 Class Distribution -------------------- 84% | Mutant 15% | Scavenger-Mutant Dominant Class ---------------- Mutant | -10/Materials Mutant | -9/Materials Resources | -11 -10 -9 ----------- Run | Jun Mat Mat Matter Collected 549 | 213 . 336 Remotely . | . . . Salvage Created 425 | . . 425 Parts 36 | . . 36 Haulers Intercepted . | . . . Recyclers Shooed . | . . . Parts Field Recycled . | . . . Retrieved Matter . | . . . Parts Self-Destructed . | . . . Prevented . | . . . Kills | -11 -10 -9 ------- Run | Jun Mat Mat Combat Hostiles Destroyed 11 | . . 11 Guns 11 | . . 11 Classes Destroyed 5 | . . 5 Builder 1 | . . 1 Watcher 1 | . . 1 Swarmer 4 | . . 4 Grunt 5 | . . 5 Sentry 2 | . . 2 Best Kill Streak 4 | . . 4 Combat Bots Only 4 | . . 4 Max Kills in Single Turn 2 | . . 2 Gunslinging . | . . . Exploded . | . . . Melee . | . . . Uniques/NPCs Destroyed . | . . . Combat | -11 -10 -9 -------- Run | Jun Mat Mat Damage Taken 1394 | . . 1394 Core 400 | . . 400 Absorbed by Shields . | . . . Core Remaining (%) 100 | 100 100 . Volleys Fired 43 | . . 43 Largest 2 | . . 2 Hottest 40 | . . 40 Shots Fired 74 | . . 74 Gun 74 | . . 74 Cannon . | . . . Launcher . | . . . Special . | . . . Kinetic 74 | . . 74 Thermal . | . . . Explosive . | . . . Electromagnetic . | . . . Robot Hit Streak 9 | . . 9 Robot Miss Streak 5 | . . 5 Penetration Max . | . . . Secondary Targets 1 | . . 1 Max Gunslinging Chain 1 | . . 1 Shots Hit Robots 50 | . . 50 Core Hits 24 | . . 24 Critical Kills . | . . . Critical Parts Destroyed . | . . . Critical Strikes . | . . . Melee Attacks . | . . . Impact . | . . . Slashing . | . . . Piercing . | . . . Sneak Attacks . | . . . Combat Hostiles . | . . . Follow-up Attacks . | . . . Damage Inflicted 639 | . . 639 Guns 639 | . . 639 Cannons . | . . . Explosions . | . . . Melee . | . . . Ramming . | . . . Kinetic 639 | . . 639 Thermal . | . . . Explosive . | . . . Electromagnetic . | . . . Impact . | . . . Slashing . | . . . Piercing . | . . . Highest Corruption . | . . . Average Corruption . | . . . Corruption Purged . | . . . Corruption Blocked . | . . . Overload Shots . | . . . Overflow Damage . | . . . Projectiles . | . . . Explosions . | . . . Melee . | . . . Knockbacks . | . . . Impact . | . . . Kinetic . | . . . Secondary . | . . . Self-Inflicted Damage . | . . . Shots . | . . . Rammed . | . . . Targets Rammed . | . . . Kicked . | . . . Crushed . | . . . Highest Temperature 16 | . . 16 Average Temperature 5 | . . 5 Received Heat Transfer 501 | . . 501 Siege Activations . | . . . Robots Corrupted . | . . . Combat Hostiles . | . . . Parts Fried . | . . . Impact Corruptions . | . . . Robots Melted . | . . . Combat Hostiles . | . . . Parts Melted . | . . . Heat Transferred . | . . . Parts Sabotaged . | . . . Parts Stolen . | . . . Parts Stripped . | . . . Power Chain Reactions . | . . . Missiles Intercepted . | . . . Alert | -11 -10 -9 ------- Run | Jun Mat Mat Peak Influence 167 | . 5 167 Initial 1 | . . 1 Average 48 | . 2 70 Maximum Alert Level . | . . . Low Security (%) 100 | 100 100 100 Level 1 . | . . . Level 2 . | . . . Level 3 . | . . . Level 4 . | . . . Level 5 . | . . . High Security . | . . . Max Security . | . . . Squads Dispatched . | . . . Investigation . | . . . Extermination . | . . . Reinforcement . | . . . Assault . | . . . Garrison . | . . . Intercept . | . . . Searches Triggered . | . . . Construction Impeded . | . . . Haulers Reinforced . | . . . Active Scanning Responses . | . . . Cargo Convoy Interrupts . | . . . Stealth | -11 -10 -9 --------- Run | Jun Mat Mat Distress Signals 1 | . 1 . Communications Jammed . | . . . Distress Signals . | . . . Times Spotted 20 | . 2 18 Peak Tracking Total 6 | . 4 6 Tactical Retreats . | . . . Traps | -11 -10 -9 ------- Run | Jun Mat Mat Traps Triggered 2 | . . 2 Indirectly . | . . . Trap Hack Attempts . | . . . Triggered . | . . . Disarmed . | . . . Reprogrammed . | . . . Reused . | . . . Traps Extracted . | . . . Installed . | . . . Triggered . | . . . Machines | -11 -10 -9 ---------- Run | Jun Mat Mat Machines Disabled . | . . . Max in Single Turn . | . . . Machines Repaired . | . . . Machines Sabotaged . | . . . Overloaded Fab Kills . | . . . Hacking | -11 -10 -9 --------- Run | Jun Mat Mat Machines Accessed 3 | . 2 1 Terminals 3 | . 2 1 Fabricators . | . . . Repair Stations . | . . . Recycling Units . | . . . Scanalyzers . | . . . Garrison Access . | . . . Total Hacks 12 | . 10 2 Successful 7 | . 5 2 Failed 5 | . 5 . Catastrophic . | . . . Database Lockouts . | . . . Manual 8 | . 7 1 Terminals 12 | . 10 2 Fabricators . | . . . Repair Stations . | . . . Recycling Units . | . . . Scanalyzers . | . . . Garrison Access . | . . . Terminal Hacks 3 | . 1 2 Record 1 | . 1 . Branch Access Points 1 | . . 1 Emergency Access Points 1 | . . 1 Fabricator Hacks . | . . . Repair Station Hacks . | . . . Recycling Unit Hacks . | . . . Scanalyzer . | . . . Garrison Access Hacks . | . . . Unauthorized Hacks 4 | . 4 . Terminals 4 | . 4 . Track 1 | . 1 . Botnet 2 | . 2 . Operators 1 | . 1 . Fabricators . | . . . Repair Stations . | . . . Recycling Units . | . . . Scanalyzers . | . . . Garrison Access . | . . . Data Cores Recovered . | . . . Used . | . . . Hacking Detections 3 | . 2 1 Full Trace Events . | . . . Feedback Events . | . . . Feedback Blocked . | . . . Robot Schematics Acquired . | . . . Robots Built . | . . . Authchips . | . . . Time . | . . . Total Robot Build Rating . | . . . Part Schematics Acquired . | . . . Parts Built . | . . . Authchips . | . . . Time . | . . . Total Part Build Rating . | . . . Parts Repaired . | . . . Time . | . . . Parts Recycled . | . . . Recycled Matter . | . . . Retrieved Matter . | . . . Retrieved Components . | . . . Parts Scanalyzed . | . . . Part Schematics Acquired . | . . . Parts Damaged . | . . . Bothacking | -11 -10 -9 ------------ Run | Jun Mat Mat Used RIF Installer . | . . . Robots Hacked . | . . . Non-combat . | . . . Combat . | . . . Robot Hacks Applied . | . . . Relay Couplers Released . | . . . Fabnet Peak Effective % . | . . . Robots Rewired . | . . . Allies Hacked . | . . . Hacks Repelled . | . . . Allies | -11 -10 -9 -------- Run | Jun Mat Mat Total Allies . | . . . Largest Group . | . . . Highest-Rated Group . | . . . Highest-Rated Ally . | . . . Total Orders . | . . . Ally Attacks . | . . . Total Damage . | . . . Kills . | . . . Allies Corrupted . | . . . Allies Melted . | . . . Intel | -11 -10 -9 ------- Run | Jun Mat Mat Robot Analysis Total . | . . . Derelict Logs Recovered . | . . . Drone Launches . | . . . Drone Recoveries . | . . . Exploration | -11 -10 -9 ------------- Run | Jun Mat Mat Turns Passed 1127 | 80 281 766 Spaces Moved 837 | 53 220 564 Core 19 | 15 . 4 Treads . | . . . Legs 430 | 38 220 172 Wheels 388 | . . 388 Hover . | . . . Flight . | . . . Fastest Speed 50 | 50 120 50 Average Speed 108 | 106 120 104 Slowest Speed 350 | 190 120 350 Overloaded Moves . | . . . Propulsion Burnouts . | . . . Robots Hopped . | . . . Cave-ins Triggered . | . . . Exploration Rate (%) 27 | 5 41 36 Regions Visited 2 Branch Regions . Pre-discovered Areas . | . . . Known Exits Taken . | . . . Unknown Exits Taken 2 | 1 1 . Scrap Searched . | . . . Spaces Dug . | . . . Terrain Destroyed . | . . . Melee . | . . . Projectile . | . . . AOE . | . . . Terrain Rammed . | . . . Walls Destroyed . | . . . Machines Disabled . | . . . Actions | -11 -10 -9 --------- Run | Jun Mat Mat Total 979 | 73 237 669 Wait 46 | 9 11 26 Move 835 | 52 219 564 Hop . | . . . Pick Up 21 | 6 4 11 Fast Attach 16 | 6 1 9 Attach 4 | . . 4 Detach 1 | . . 1 Swap 3 | . . 3 Drop 10 | . 2 8 Fire 43 | . . 43 Melee . | . . . Ram . | . . . Kick . | . . . Crush . | . . . Escape Stasis . | . . . Rewire . | . . . Trap . | . . . Miscellaneous . | . . . Route ------- -11/Junkyard -10/Materials (discovered 2 exits: *Mat x2) -9/Materials (discovered 2 exits: *Min x2) History --------- Turn | Location | Event 19 | -11/Junkyard | Discovered new exit (range 15) 81 | -11/Junkyard | Entered Materials 232 | -10/Materials | Discovered new exit (range 4) 306 | -10/Materials | Build established: Mutant 340 | -10/Materials | Discovered new exit (range 12) 362 | -10/Materials | Entered another Materials area 362 | -9/Materials | Evolved 2 slots: Propulsion x2 829 | -9/Materials | Identified exit to Mines 899 | -9/Materials | Lost 7 parts (1p5n1w) 1103 | -9/Materials | Core integrity fell below 50% 1125 | -9/Materials | Core integrity fell below 20% 1127 | -9/Materials | Released all parts (1) 1128 | -9/Materials | Destroyed by G-34 Mercenary with Small Laser Last Messages --------------- 00991_ Dropped Lgt. Assault Rifle. 00992_ Acquired Assault Rifle. 00997_ Assault Rifle destroyed. 01026_ K-01 Serf cleans the Material Compactor. 01045_ Triggered Blade Trap. 01045_ Massive razor-sharp blades shoot up from within the floor. 01045_ Aluminum Leg severed. 01064_ K-01 Serf cleans the Electrolysis Chamber. 01082_ Dropped Sml. Storage Unit. 01083_ Dropped Lgt. Ion Engine. 01083_ Aluminum Leg severed. 01087_ Acquired Hvy. Armor Plating. 01095_ Aluminum Leg destroyed. 01119_ Dropped Ion Engine. 01119_ Dropped Hvy. Ion Engine. 01120_ Dropped Lgt. Assault Rifle. 01120_ Sensor Array destroyed. 01121_ Machine disabled. 01124_ Critical hit (Burn: +37). 01127_ Released Lrg. Storage Unit. Map ----- +----------------------------------------------------+ | | | | | | | | | | | | | | | | | | | | | | | | | ???????????????????????????????????? | | ???????????????????????????????????? | | ???????????????????????????????????? | | ???????????????????????????????????? | | ???????????????????????????????????? | | ?????????#####?????????????????????? | | ????????##"""##????????????????????? | | ???????## |||"##???????????????????? | | ???????#"" ""#???????????????????? | | ???????# #???????????????????? | | ???????# > #???????????????????? | | ???????# #???????????????????? | | ???????# #???????????????????? | | ????????# @[ #????????????????????? | | ????????##*!!##????????????????????? | | ?????????#[l]#?????????????????????? | | ?????????+*!!+?????????????????????? | | ?????????#*[ #?????????????????????? | | ?????????# #?????????????????????? | | ?????????# #?????????????????????? | | ?????????# #?????????????????????? | | ?????????# #?????????????????????? | | ?????????#g #?????????????????????? | | ?????????# #?????????????????????? | | ?????????#Yg #?????????????????????? | | ?????????# k#?????????????????????? | | ?????##### ######????????????????? | | ?????#!! ## #????????????????? | | ?????#!! ## #????????????????? | | ?????#!! ## #????????????????? | | ?????#! ## ?????????????????? | | ?????#!! = ## ?###########?????? | | ?????#!!*! ## ?# ##????? | | ?????##### ## ?# +?????? | | ????????# ##+### """ [ #?????? | | ????????# # """ [ #?????# | | ????????+ + """ [#?????# | | ????????# # * [[#?????# | +----------------------------------------------------+ Best States ------------- Heat Dissipation 28 Energy Generation 14 Energy Capacity 280 Matter Stores 299 Matter Capacity 300 Sight Range 16 Robot Scan Range 14 Terrain Scan Density 10 Evasion (%) 55 Item Schematics ----------------- None Robot Schematics ------------------ None Fabricated ------------ Nothing Alien Tech Used ----------------- None Achievements -------------- None Challenges ------------ None Game ------ Seed PointyDataCloak Manual? 0 Play Time 00:16:18 Cumulative 20.7 hours Start 2024.02.11 @ 23:22:32 End 2024.02.11 @ 23:38:13 Sessions 1 Manual Loads 0 Difficulty Rogue Special Mode None Game No. 23 Rogue 23 Adventurer 0 Explorer 0 Win Type - Total 0 Types 0/0/0/0/0/0/0/0/0 Lore% 31 Gallery% 32 Achievement% 37 Wizard Run 0 Options --------- ASCII 0 Keyboard 0 Movement Numpad Keybinds 0 Fullscreen 1 Font 18/SmallcapsGlow Map View 76x50 Tactical HUD 1 Map Filters NONE Filters NONE Steam 0 RUN: cadf45e3-8b6f-4e0a-a880-aab5ab4bb88c